Cogmind - Beta 14 @@@ ROGUE MODE // 2024.08.29 @ 03:47:45 Player: J1ang-5h1 Result: Destroyed by Autobeam Turret with Autobeam Performance ------------- Evolutions (0) 0 Regions Visited (2) 400 Robots Destroyed (39) 195 Value Destroyed (988) 988 Prototype IDs (4) 80 Alien Tech Used (0) 0 Bonus (0) 0 TOTAL SCORE: 1663 Bonus ------- None Cogmind --------- Core Integrity 0/250 Matter 240/300 Energy 200/200 System Corruption 0% Temperature Cool (12) Movement Rolling (125) Ox3 Location -10/Subcaves Parts ------- > --- POWER (1) -------- Subdweller Power Source > --- PROPULSION (2) --- Wheel Subdweller Monowheel > --- UTILITY (2) ------ Large Storage Unit Makeshift Light Armor Plating > --- WEAPON (2) ------- Light Cannon Grenade Launcher > --- INVENTORY (15) --- Subdweller Power Source Light Nuclear Core Subdweller Monowheel Improved Heat Sink Subdweller Optics Subdweller Optics Improved Terrain Scanner Seismic Detector Core Shielding Light Armor Plating Scrap Shield Subdweller Machine Gun Light Cannon Grenade Launcher Peak State ------------ > --- POWER ------------ Light Nuclear Core > --- PROPULSION ------- Light Treads Light Treads > --- UTILITY ---------- Large Storage Unit Improved Terrain Scanner > --- WEAPON ----------- Subdweller Machine Gun Subdweller Machine Gun > --- INVENTORY -------- Subdweller Power Source Light Nuclear Core Subdweller Monowheel Improved Heat Sink Seismic Detector Transport Network Coupler Core Shielding Light Armor Plating Medium Laser Medium Laser Light Cannon Light Cannon Light Cannon Grenade Launcher Grenade Launcher [Rating: 15] Favorites ----------- Power Light Ion Engine Engine Light Ion Engine Power Core Light Nuclear Core Propulsion Light Treads Treads Light Treads Leg Aluminum Leg Wheel Subdweller Monowheel Utility Large Storage Unit Device Improved Heat Sink Storage Large Storage Unit Protection Light Armor Plating Weapon Medium Laser Energy Gun Medium Laser Energy Cannon Beam Cannon Ballistic Gun Subdweller Machine Gun Ballistic Cannon Light Cannon Launcher Grenade Launcher Build | -11 -10 -10 ------- Run | Yrd Mat Sub Slots Evolved . | . . . Power . | . . . Propulsion . | . . . Utility . | . . . Weapon . | . . . Parts Attached 61 | 2 26 33 Power 5 | . 2 3 Engine 4 | . 2 2 Core 1 | . . 1 Reactor . | . . . Propulsion 6 | . 4 2 Treads 4 | . 4 . Leg . | . . . Wheel 2 | . . 2 Hover . | . . . Flight . | . . . Utility 12 | 1 5 6 Device 7 | 1 3 3 Storage 2 | . 2 . Processor . | . . . Hackware . | . . . Protection 3 | . . 3 Artifact . | . . . Weapon 38 | 1 15 22 Energy Gun 9 | . 9 . Energy Cannon 1 | . 1 . Ballistic Gun 12 | 1 . 11 Ballistic Cannon 6 | . . 6 Launcher 10 | . 5 5 Special Weapon . | . . . Impact Weapon . | . . . Slashing Weapon . | . . . Piercing Weapon . | . . . Special Melee Weapon . | . . . Unidentified Prototypes . | . . . Parts Lost 3 | . 2 1 Power . | . . . Propulsion . | . . . Utility 1 | . 1 . Weapon 2 | . 1 1 Highest Loss Streak 1 | . 1 1 To Critical Strikes . | . . . Average Slot Usage (%) 98 | . 97 99 Engine 12 | . 13 11 Core 1 | . . 2 Treads 15 | . 20 8 Leg 3 | . 6 . Wheel 8 | . . 18 Device 11 | . 13 8 Storage 14 | . 14 14 Protection 2 | . . 5 Energy Gun 13 | . 22 2 Ballistic Gun 8 | . 3 13 Ballistic Cannon 3 | . . 7 Launcher 2 | . . 4 Peak Build Rating 15 | 7 10 15 Average Rating 11 | 6 9 12 On Entrance 7 | 6 7 10 Naked Turns . | . . . Heaviest Build 36 | 15 28 36 Greatest Support 40 | 20 40 40 Greatest Overweight (x) 11 | . 5 11 Average Overweight (x) . | . . 1 Largest Inventory Capacity 15 | 8 15 15 Average Capacity 12 | 8 11 15 Most Carried 15 | 8 15 15 Average Carried 12 | 6 9 14 Final Capacity 15 | 8 15 15 Final Carried 15 | 7 15 15 Class Distribution -------------------- 80% | Mutant 19% | Scavenger-Mutant Dominant Class ---------------- Mutant | -10/Materials Mutant | -10/Subcaves Resources | -11 -10 -10 ----------- Run | Yrd Mat Sub Matter Collected 1465 | 232 478 755 Remotely . | . . . Salvage Created 1110 | 77 593 440 Parts 67 | 6 39 22 Haulers Intercepted 2 | . 2 . Recyclers Shooed . | . . . Parts Field Recycled . | . . . Retrieved Matter . | . . . Parts Self-Destructed 8 | . . 8 Prevented . | . . . Kills | -11 -10 -10 ------- Run | Yrd Mat Sub Combat Hostiles Destroyed 31 | . 16 15 Guns 16 | . 11 5 Cannons 7 | . . 7 AOE 8 | . 5 3 Classes Destroyed 9 | 2 5 2 Worker 1 | . 1 . Tunneler 1 | 1 . . Hauler 2 | . 2 . Recycler 1 | 1 . . Watcher 3 | . 3 . Swarmer 10 | . 6 4 Grunt 12 | . 10 2 Sentry 1 | . . 1 Subdweller 8 | . . 8 Best Kill Streak 5 | 2 5 3 Combat Bots Only 5 | . 5 3 Max Kills in Single Turn 3 | 1 3 1 Gunslinging . | . . . Exploded 2 | . 2 1 Melee . | . . . Uniques/NPCs Destroyed . | . . . Combat | -11 -10 -10 -------- Run | Yrd Mat Sub Hostile Shots Fired 130 | . 64 66 Missed 34 | . 15 19 Damage Taken 1359 | . 495 864 Core 251 | . 96 155 Absorbed by Shields . | . . . Regen/Repaired (Parts) 86 | . 86 . Core Remaining (%) 100 | 100 . . Volleys Fired 143 | 4 73 66 Largest 2 | 2 2 2 Hottest 100 | 70 100 100 Shots Fired 225 | 8 109 108 Gun 144 | 8 102 34 Cannon 51 | . . 51 Launcher 30 | . 7 23 Special . | . . . Kinetic 135 | 4 52 79 Thermal 60 | 4 50 6 Explosive 30 | . 7 23 Electromagnetic . | . . . Robot Hit Streak 18 | 5 13 18 Robot Miss Streak 9 | 1 9 3 Penetration Max . | . . . Secondary Targets 1 | . . 1 Max Gunslinging Chain 1 | . . 1 Shots Hit Robots 122 | 7 65 50 Core Hits 57 | 3 34 20 Critical Kills 2 | . 1 1 Critical Parts Destroyed . | . . . Critical Strikes 10 | . 6 4 Burn 6 | . 5 1 Destroy 2 | . 1 1 Blast 2 | . . 2 Melee Attacks . | . . . Impact . | . . . Slashing . | . . . Piercing . | . . . Sneak Attacks . | . . . Combat Hostiles . | . . . Follow-up Attacks . | . . . Damage Inflicted 2337 | 90 1150 1097 Guns 1400 | 90 839 471 Cannons 456 | . . 456 Explosions 481 | . 311 170 Melee . | . . . Ramming . | . . . Kinetic 1316 | 40 424 852 Thermal 540 | 50 415 75 Explosive 481 | . 311 170 Electromagnetic . | . . . Impact . | . . . Slashing . | . . . Piercing . | . . . Highest Corruption . | . . . Average Corruption . | . . . Corruption Purged . | . . . Corruption Blocked . | . . . Overload Shots . | . . . Overflow Damage 6 | . 6 . Projectiles . | . . . Explosions 6 | . 6 . Melee . | . . . Knockbacks 3 | . . 3 Impact . | . . . Kinetic 3 | . . 3 Secondary . | . . . Self-Inflicted Damage 40 | . . 40 Shots 1 | . . 1 Rammed . | . . . Targets Rammed . | . . . Kicked . | . . . Crushed . | . . . Highest Temperature 36 | 36 33 . Average Temperature 14 | 19 11 . Received Heat Transfer 297 | . 186 111 Siege Activations . | . . . Robots Corrupted . | . . . Combat Hostiles . | . . . Parts Fried . | . . . Impact Corruptions . | . . . Robots Melted . | . . . Combat Hostiles . | . . . Parts Melted 2 | . 2 . Heat Transferred 1998 | 148 1554 296 Parts Sabotaged . | . . . Parts Stolen . | . . . Parts Stripped . | . . . Power Chain Reactions . | . . . Alert | -11 -10 -10 ------- Run | Yrd Mat Sub Peak Influence 345 | 10 345 . Initial 6 | . 6 . Average 162 | 7 165 . Maximum Alert Level 1 | . 1 . Low Security (%) 74 | 100 74 . Level 1 25 | . 25 . Level 2 . | . . . Level 3 . | . . . Level 4 . | . . . Level 5 . | . . . High Security . | . . . Max Security . | . . . Squads Dispatched 3 | . 3 . Investigation 2 | . 2 . Extermination . | . . . Reinforcement 1 | . 1 . Assault . | . . . Garrison . | . . . Intercept . | . . . Searches Triggered . | . . . Construction Impeded . | . . . Haulers Reinforced . | . . . Active Scanning Responses . | . . . Cargo Convoy Interrupts . | . . . Stealth | -11 -10 -10 --------- Run | Yrd Mat Sub Distress Signals 2 | . 2 . Communications Jammed . | . . . Distress Signals . | . . . Times Spotted 51 | . 30 21 Peak Tracking Total 5 | . 5 4 Tactical Retreats 5 | . 1 4 Traps | -11 -10 -10 ------- Run | Yrd Mat Sub Traps Triggered 5 | . 3 2 Indirectly . | . . . Trap Hack Attempts . | . . . Triggered . | . . . Disarmed . | . . . Reprogrammed . | . . . Reused 1 | . . 1 Traps Extracted . | . . . Installed 1 | . . 1 Triggered . | . . . Most Traps Carried 1 | . . 1 Machines | -11 -10 -10 ---------- Run | Yrd Mat Sub Machines Disabled 3 | . 2 1 Max in Single Turn 1 | . 1 1 Machines Repaired . | . . . Machines Dismantled . | . . . Machines Sabotaged . | . . . Overloaded Fab Kills . | . . . Hacking | -11 -10 -10 --------- Run | Yrd Mat Sub Machines Accessed 10 | . 9 1 Terminals 6 | . 6 . Fabricators . | . . . Repair Stations 1 | . 1 . Recycling Units 2 | . 2 . Scanalyzers . | . . . Garrison Access . | . . . Total Hacks 33 | . 29 4 Successful 23 | . 19 4 Failed 10 | . 10 . Catastrophic 2 | . 2 . Database Lockouts . | . . . Manual 10 | . 10 . Terminals 18 | . 18 . Fabricators . | . . . Repair Stations 6 | . 6 . Recycling Units 5 | . 5 . Scanalyzers . | . . . Garrison Access . | . . . Terminal Hacks 11 | . 7 4 Record 4 | . . 4 Robot Analysis 2 | . 2 . Prototype ID Bank 3 | . 3 . Locate Traps 1 | . 1 . Hauler Manifests 1 | . 1 . Fabricator Hacks . | . . . Repair Station Hacks 6 | . 6 . Scan Component 3 | . 3 . Repair 3 | . 3 . Recycling Unit Hacks 2 | . 2 . Report Inventory 2 | . 2 . Scanalyzer . | . . . Garrison Access Hacks . | . . . Unauthorized Hacks 4 | . 4 . Terminals 2 | . 2 . Assimilate 1 | . 1 . Disrupt 1 | . 1 . Fabricators . | . . . Repair Stations . | . . . Recycling Units 2 | . 2 . Tunnel 2 | . 2 . Scanalyzers . | . . . Garrison Access . | . . . Data Cores Recovered . | . . . Used . | . . . Hacking Detections 8 | . 8 . Full Trace Events . | . . . Feedback Events . | . . . Feedback Blocked . | . . . Robot Schematics Acquired . | . . . Robots Built . | . . . Authchips . | . . . Time . | . . . Total Robot Build Rating . | . . . Part Schematics Acquired . | . . . Parts Built . | . . . Authchips . | . . . Time . | . . . Total Part Build Rating . | . . . Parts Repaired 3 | . 3 . Time 90 | . 90 . Parts Recycled . | . . . Recycled Matter . | . . . Retrieved Matter . | . . . Retrieved Components . | . . . Parts Scanalyzed . | . . . Part Schematics Acquired . | . . . Parts Damaged . | . . . Bothacking | -11 -10 -10 ------------ Run | Yrd Mat Sub Used RIF Installer . | . . . Robots Hacked . | . . . Non-combat . | . . . Combat . | . . . Robot Hacks Applied . | . . . Relay Couplers Released . | . . . Fabnet Peak Effective % . | . . . Robots Rewired . | . . . Allies Hacked . | . . . Hacks Repelled . | . . . Allies | -11 -10 -10 -------- Run | Yrd Mat Sub Total Allies 1 | . 1 . Largest Group 1 | . 1 . Highest-Rated Group 10 | . 10 . Highest-Rated Ally 10 | . 10 . Total Orders . | . . . Ally Attacks . | . . . Total Damage . | . . . Kills . | . . . Allies Corrupted . | . . . Allies Melted . | . . . Intel | -11 -10 -10 ------- Run | Yrd Mat Sub Robot Analysis Total 2 | . 2 . Derelict Logs Recovered 1 | . . 1 Drone Launches . | . . . Drone Recoveries . | . . . Exploration | -11 -10 -10 ------------- Run | Yrd Mat Sub Turns Passed 3797 | 35 2012 1750 Spaces Moved 2226 | 16 1083 1127 Core 5 | . 3 2 Treads 1099 | . 822 277 Legs 274 | 16 258 . Wheels 848 | . . 848 Hover . | . . . Flight . | . . . Fastest Speed 107 | 120 120 107 Average Speed 140 | 120 151 129 Slowest Speed 600 | 120 300 600 Overloaded Moves . | . . . Propulsion Burnouts . | . . . Robots Hopped . | . . . Cave-ins Triggered . | . . . Exploration Rate (%) 44 | 3 96 35 Regions Visited 2 Branch Regions 1 Pre-discovered Areas 2 | . 2 . Known Exits Taken . | . . . Unknown Exits Taken 2 | 1 1 . Scrap Searched 4 | . . 4 Spaces Dug 41 | . 15 26 Terrain Destroyed 204 | . 51 153 Melee . | . . . Projectile 1 | . . 1 AOE 203 | . 51 152 Terrain Rammed . | . . . Walls Destroyed . | . . . Machines Disabled . | . . . Actions | -11 -10 -10 --------- Run | Yrd Mat Sub Total 2665 | 23 1344 1298 Wait 181 | . 132 49 Move 2224 | 15 1082 1127 Hop . | . . . Pick Up 32 | 2 22 8 Fast Attach 9 | . 5 4 Attach 11 | 1 8 2 Detach . | . . . Swap 41 | 1 13 27 Drop 23 | . 9 14 Fire 143 | 4 73 66 Melee . | . . . Ram . | . . . Kick . | . . . Crush . | . . . Escape Stasis . | . . . Rewire . | . . . Trap 1 | . . 1 Miscellaneous . | . . . Route ------- -11/Scrapyard -10/Materials (discovered 6 exits: [*Mat x3] / [*Min x2] / *Sub) -10/Subcaves (discovered 1 exit: [*Rec]) History --------- Turn | Location | Event 15 | -11/Scrapyard | Discovered new exit (range 3) 36 | -11/Scrapyard | Entered Materials 225 | -10/Materials | Discovered new exit (range 3) 310 | -10/Materials | Build established: Mutant 381 | -10/Materials | Discovered new exit (range 8) 826 | -10/Materials | Discovered new exit (range 4) 1011 | -10/Materials | Discovered new exit (range 11) 1295 | -10/Materials | Repaired Lgt. Treads 1334 | -10/Materials | Repaired Imp. Heat Sink 1442 | -10/Materials | Discovered new exit (range 15) 1923 | -10/Materials | Repaired Med. Laser 2005 | -10/Materials | Discovered new exit (range 6) 2048 | -10/Materials | Entered Subcaves 2069 | -10/Subcaves | Core integrity fell below 50% 2124 | -10/Subcaves | Disturbed a concealed Subdweller 2212 | -10/Subcaves | Learned Materials garrison access intel 2292 | -10/Subcaves | Shifting Twisted Machinery released Sub. Power Source 2416 | -10/Subcaves | Shifting Twisted Machinery released Piercing Trap 2645 | -10/Subcaves | Visited Clippyterm 2648 | -10/Subcaves | Learned 40 Factory zone layouts 2648 | -10/Subcaves | Learned Factory garrison access intel 3057 | -10/Subcaves | Build established: Scavenger-Mutant 3670 | -10/Subcaves | Core integrity fell below 20% 3702 | -10/Subcaves | Build established: Mutant 3745 | -10/Subcaves | Discovered new exit (range 15) 3782 | -10/Subcaves | Ambushed by Subdweller buried in earth 3798 | -10/Subcaves | Destroyed by Autobeam Turret with Autobeam Last Messages --------------- 03696_ S-10 Pest destroyed. 03700_ Acquired 31 matter. 03701_ Acquired 6 matter. 03704_ Acquired 1 matter. 03722_ Acquired 6 matter. 03745_ EXIT=FOUND 03750_ S-10 Pest destroyed. 03757_ Flight Unit fries itself beyond repair. 03758_ Lgt. Assault Rifle fries itself beyond repair. 03759_ Lgt. Ion Engine fries itself beyond repair. 03770_ Acquired 13 matter. 03777_ Acquired 55 matter. 03783_ O6-FRP(R): "ARGHSUB!" 03784_ O6-FRP(R) destroyed. 03790_ The unstable cave ceiling collapses. 03794_ Acquired 24 matter. 03796_ Machine disabled. 03798_ The unstable cave ceiling collapses. Map ----- +----------------------------------------------------+ | ???????????????????????????????# ####????????????? | | ????????????????????##?????????## #?????#?#?????? | | ???????????????????????????#????## #??????????##?? | | ????????????????????????????????## ##?#???#??????? | | ??????????????????????#?????????# # #????#??#???#? | | ?????????????????????#??????????# ###?????#?????? | | ????????#?????????????????????#?## #??#????? #???? | | ???????? ##??????????????????????# ##????????????# | | ???????? ####?????????#?????????## #?? ??##?#???# | | ???????? ##?????????#?????????# #????????????? | | #??????? % ?????????#?????#???##"#????????????? | | # ??????# % ??????? "???#??????## #??????????#?? | | # ????# ##### "?????????## ####?????????? | | # #### ""?#?#????## #### ###??????#? | | % & <##?????# ##??# #??#??????# | | &%&* t""?#???#??# ##?# #????#????? | | % ##%####### "#####?#?# # ## #???#????#? | | ????#%% #???????? % ##??#### ## ##????????? | | ???????## #????????? ##?#?### # ##????????? | | ???????# #?????????# #???#?## ##?#??#???? | | ???????# ######?#### ###???# #????????? | | ???????# ## ### ## #???# #????????? | | ???????## ## ###### #?####???? | | ????????#%### # ## ## ### #???? | | ????????###?##### ! ## ##??? | | ????????????????## @ ######## # #??? | | ?????????????????# # ! #?##??### ## #??? | | ?????????????????##### & #?????# # #### ##?# | | ???????????????##### [= ###????# ##?## ##? | | ???????????????#%%% ###??#?### ##??# # "#? | | ???????????????#% * ##???? ??# "#??## ##? | | ???????????????#% ## ##?#?? ??## ##??# *### | | ???????????????#% #### ##### ??## ##### " # | | ?????????#????## #??# # #??# " # # " | | ??????????????# ##?# #??# "## | | ??????????????# # ### #??# ##### # | | ??????????#???### #?#?#### "# "# | | ????????????????# ####?????## " | | ???????????????## #????????# " """ | | ???????????????# #???#????### """""""" | | ???????????????# ##??#??????## ####""## | | ??#?????????#### ## #??#???????## ##?""""# | | ???????????## #?# ##########???# "#?#"" # | | ????????????# #####"""""#?????## "#?"" # | | ????????????# ##""X""#??#### ####" | | ????????????# ###" "#??# "#"#"" | | ????????????## ##?### ###?## " &" " | | ??#??????????# ###???## ###?### /[& " # | | ?????????????# ###??## #???## ##""" # | | ?????????????### #### ###### #""""# | +----------------------------------------------------+ Best States ------------- Heat Dissipation 39 Energy Generation 15 Energy Capacity 250 Matter Stores 300 Matter Capacity 300 Sight Range 16 Terrain Scan Range 16 Terrain Scan Density 10 Armor Coverage 150 Evasion (%) 55 Recoil Reduction 2 Item Schematics ----------------- None Robot Schematics ------------------ None Fabricated ------------ Nothing Alien Tech Used ----------------- None Achievements -------------- None Challenges ------------ None Game ------ Seed PotentialScanOptics Manual? 0 Play Time 00:34:03 Cumulative 250.2 hours Start 2024.08.29 @ 03:15:33 End 2024.08.29 @ 03:47:45 Sessions 1 Manual Loads 0 Difficulty Rogue Special Mode None Game No. 186 Rogue 176 Adventurer 0 Explorer 10 Win Type - Total 3 Types 3/0/0/0/0/0/0/0/0 Lore% 62 Gallery% 69 Achievement% 53 Wizard Run 0 Options --------- Layout 1 ASCII 0 Keyboard 0 Movement Arrows Keybinds 1 Fullscreen 1 Font 24/Smallcaps Map View 50x35 Zoom Use 0% Tactical HUD 1 Map Filters NONE Filters NONE Steam 1 RUN: efadd497-3ec6-4155-a204-f22306e82148